bitfinex/quotes_BTCUSD_20260310
["timestamp","ask_amount","ask_price","bid_price","bid_amount"]
[1773180004768,0.7215046,69827.0,69817.0,0.00144]
[1773180005752,0.7215046,69827.0,69814.0,0.07161868]
[1773180006022,0.05883564,69826.0,69815.0,0.00144]
[1773180006223,0.05883564,69826.0,69815.0,0.00129029]
[1773180006425,0.7215046,69827.0,69816.0,0.07181682]
[1773180006636,0.00144,69836.0,69817.0,0.00203359]
[1773180006974,0.05883564,69841.0,69817.0,0.00203359]
[1773180007171,0.05883564,69846.0,69817.0,0.00203359]
[1773180008055,0.05883564,69841.0,69818.0,0.00144]
[1773180008246,0.05883564,69841.0,69820.0,0.00380678]
[1773180008519,0.05883564,69841.0,69821.0,0.07161169]
[1773180008750,0.0002716,69845.0,69823.0,0.0021533]
[1773180008955,0.05207697,69853.0,69826.0,0.00906167]
[1773180009177,0.055606,69852.0,69827.0,0.00144]
[1773180009376,0.07157976,69853.0,69825.0,0.00023]
[1773180009377,0.055606,69849.0,69825.0,0.00023]
[1773180009530,0.055606,69849.0,69828.0,0.00144]
[1773180009715,0.055606,69847.0,69827.0,0.00144]
[1773180009912,0.055606,69847.0,69827.0,0.00901282]
[1773180010731,0.055606,69847.0,69828.0,0.07160451]
[1773180010932,0.055606,69847.0,69828.0,0.07793762]
[1773180011131,0.055606,69847.0,69829.0,0.00633311]
[1773180013577,0.05582601,69847.0,69830.0,0.07160246]
[1773180013774,0.05582601,69847.0,69831.0,0.00244182]
[1773180014520,0.00144,69848.0,69831.0,0.00244182]
[1773180014738,0.00144,69852.0,69831.0,0.00244182]
[1773180015694,0.054856,69851.0,69832.0,0.07160041]
[1773180015900,0.054856,69851.0,69834.0,0.00164772]
[1773180016785,0.00022001,69854.0,69834.0,0.00164772]
[1773180016920,0.00022001,69854.0,69836.0,0.00051342]
[1773180017529,0.054856,69853.0,69837.0,0.00144]
[1773180017902,0.054856,69853.0,69838.0,0.07303426]
[1773180018865,0.054856,69853.0,69838.0,0.07159426]
[1773180019063,0.054856,69853.0,69839.0,0.00144]
[1773180019817,0.054856,69853.0,69840.0,0.07159221]
[1773180020178,0.05507601,69853.0,69845.0,0.00048]
[1773180021602,0.05507601,69853.0,69837.0,0.07159221]
[1773180021603,0.05507601,69853.0,69834.0,0.07159751]
[1773180021796,0.05507601,69853.0,69835.0,0.00144]
[1773180021797,0.05297139,69849.0,69835.0,0.00144]
[1773180021998,0.05297139,69849.0,69836.0,0.00144]
[1773180022233,0.05297139,69849.0,69834.0,0.00010729]
[1773180022407,0.05441139,69849.0,69835.0,0.00144]
[1773180022769,0.05441139,69849.0,69834.0,0.00154729]
[1773180023182,0.05441139,69849.0,69827.0,0.0001081]
[1773180023405,0.05441139,69849.0,69825.0,0.05894422]
[1773180023406,0.05281314,69839.0,69825.0,0.05894422]
[1773180023618,0.00144,69838.0,69825.0,0.05894422]
[1773180024429,0.05281314,69837.0,69826.0,0.00144]
[1773180025065,0.05281314,69837.0,69825.0,0.05894422]
[1773180025409,0.05281314,69837.0,69826.0,0.00144]
[1773180026326,0.05281314,69837.0,69827.0,0.07160553]
[1773180027271,0.05281314,69837.0,69826.0,0.07304646]
[1773180027474,0.05281314,69837.0,69824.0,0.07304656]
[1773180027877,0.05281314,69837.0,69827.0,0.0002]
[1773180029964,0.05281314,69837.0,69828.0,0.14226057]
[1773180030364,0.05281314,69837.0,69829.0,0.14226057]
[1773180030575,0.05281314,69837.0,69830.0,0.14226057]
[1773180030819,0.05281314,69837.0,69831.0,0.14226057]
[1773180031026,0.05281314,69837.0,69827.0,0.07180549]
[1773180031027,0.05281314,69837.0,69832.0,0.14226057]
[1773180031314,0.05281314,69835.0,69833.0,0.14226057]
[1773180031451,0.00144,69836.0,69834.0,0.1427844]
[1773180031654,0.05281314,69835.0,69828.0,0.07160451]
[1773180031863,0.05281314,69835.0,69827.0,0.07180516]
[1773180032978,0.05281314,69835.0,69827.0,0.07180475]
[1773180033377,0.07158298,69851.0,69827.0,0.07180475]
[1773180033378,0.07179577,69857.0,69828.0,0.05183625]
[1773180033658,0.04575538,69849.0,69832.0,0.05183625]
[1773180034283,0.04575538,69849.0,69832.0,0.17043987]
[1773180034831,0.04575538,69849.0,69831.0,0.07160143]
[1773180034832,0.04575538,69849.0,69833.0,0.00144]
[1773180036194,0.07158359,69849.0,69833.0,0.00144]
[1773180036351,0.04424584,69848.0,69834.0,0.00144]
[1773180036547,0.04424584,69848.0,69832.0,0.07159938]
[1773180036748,0.04424584,69848.0,69831.0,0.07304041]
[1773180036970,0.04424584,69848.0,69831.0,0.07160041]
[1773180037170,0.04424584,69848.0,69831.0,0.07304041]
[1773180038058,0.04424584,69848.0,69831.0,0.07160041]
[1773180038507,0.04197776,69846.0,69830.0,0.0002]
[1773180040517,0.04030264,69844.0,69830.0,0.0002]
[1773180040718,0.04174264,69843.0,69830.0,0.0002]
[1773180041133,0.04174264,69843.0,69831.0,0.0002]
[1773180041816,0.04038239,69843.0,69831.0,0.0002]
[1773180043062,7.975e-05,69843.0,69831.0,0.0002]
[1773180043334,7.975e-05,69843.0,69832.0,0.05183625]
[1773180043539,7.975e-05,69843.0,69831.0,0.0002]
[1773180044378,0.03786152,69842.0,69831.0,0.0002]
[1773180051943,7.975e-05,69843.0,69831.0,0.0002]
[1773180052112,7.975e-05,69843.0,69831.0,0.04006428]
[1773180053622,7.975e-05,69843.0,69831.0,0.0002]
[1773180053824,0.0290905,69843.0,69831.0,0.0002]
[1773180056109,0.00144,69842.0,69831.0,0.0002]
[1773180057562,0.10050069,69843.0,69820.0,0.21472615]
[1773180057758,0.20121679,69840.0,69811.0,0.03986428]
[1773180058105,0.03854603,69839.0,69813.0,0.03986428]
[1773180060169,0.03710603,69837.0,69815.0,0.03986428]
[1773180060951,0.21322798,69838.0,69815.0,0.03986428]
[1773180061154,0.07159426,69838.0,69815.0,0.03986428]
[1773180061766,0.03710603,69837.0,69817.0,0.03986428]
[1773180063368,0.07159631,69836.0,69818.0,0.07161476]
[1773180063548,0.07159631,69836.0,69819.0,0.03986428]
[1773180064840,0.07159631,69836.0,69819.0,0.04130428]
[1773180065491,0.07159631,69836.0,69820.0,0.07161271]
[1773180065824,0.07159631,69836.0,69821.0,0.03986428]
[1773180065973,0.10870234,69836.0,69821.0,0.03986428]
[1773180067062,0.07303631,69839.0,69821.0,0.03986428]
[1773180067063,0.00144,69839.0,69821.0,0.03986428]
[1773180067687,0.07303328,69839.0,69823.0,0.03986428]
[1773180069683,0.07303328,69839.0,69826.0,0.03986428]
[1773180071609,0.07303328,69839.0,69827.0,0.07160553]
[1773180071816,0.07303328,69839.0,69828.0,0.03986428]
[1773180072392,0.07267395,69839.0,69828.0,0.03986428]
[1773180073509,0.00108067,69839.0,69828.0,0.03986428]
[1773180073730,0.00033213,69843.0,69830.0,0.03986428]
[1773180073935,0.00033213,69843.0,69830.0,0.04134428]
[1773180074145,0.07192154,69843.0,69831.0,0.00148]
[1773180074372,0.05470313,69840.0,69831.0,0.00148]
[1773180074765,0.00033213,69843.0,69832.0,0.03986428]
[1773180074944,0.000256,69847.0,69832.0,0.03986428]
[1773180075154,0.000256,69847.0,69832.0,0.0399764]
[1773180075726,0.000256,69847.0,69834.0,0.03986428]
[1773180076152,0.07184105,69847.0,69834.0,0.03986428]
[1773180077205,0.000256,69847.0,69834.0,0.03986428]
[1773180078605,0.000256,69847.0,69835.0,0.07159733]
[1773180078786,0.000256,69847.0,69836.0,0.03986428]
[1773180079153,0.000256,69847.0,69838.0,0.03986428]
[1773180080573,0.000256,69847.0,69839.0,0.07159323]
[1773180080823,0.000256,69847.0,69840.0,0.03135697]
[1773180084752,0.000256,69847.0,69841.0,0.07159118]
[1773180085165,0.00022001,69854.0,69841.0,0.07159118]
[1773180085166,0.00044561,69860.0,69842.0,0.03135697]
[1773180085361,0.00044561,69860.0,69841.0,0.07159118]
[1773180085362,0.08707652,69870.0,69844.0,0.03135697]
[1773180085531,0.08707652,69870.0,69845.0,0.00148]
[1773180085736,0.08707652,69870.0,69846.0,0.03135697]
[1773180086273,0.15863824,69870.0,69846.0,0.03135697]
[1773180086654,0.0058456,69872.0,69851.0,0.03135697]
[1773180086876,0.0058456,69872.0,69853.0,0.07157888]
[1773180087087,0.0058456,69872.0,69854.0,0.03135697]
[1773180087304,0.07154329,69888.0,69854.0,0.03135697]
[1773180087492,0.05470313,69880.0,69854.0,0.03135697]
[1773180087855,0.10177002,69883.0,69854.0,0.03135697]
[1773180088053,0.07166287,69881.0,69854.0,0.03135697]
[1773180088287,0.00011223,69881.0,69854.0,0.03135697]
[1773180088439,0.05470313,69880.0,69854.0,0.03135697]
[1773180088853,0.05470313,69880.0,69856.0,0.03135697]
[1773180091288,0.00011223,69881.0,69858.0,0.03135697]
[1773180091489,0.00011223,69881.0,69860.0,0.03135697]
[1773180093208,0.00011223,69881.0,69863.0,0.03135697]
[1773180093846,0.00022001,69880.0,69863.0,0.03135697]
[1773180095534,0.00022001,69880.0,69865.0,0.03135697]
[1773180095712,0.00022001,69880.0,69867.0,0.03135697]
[1773180096799,0.06055313,69900.0,69871.0,0.03135697]
[1773180096984,0.07153288,69898.0,69871.0,0.0314692]
[1773180097390,0.03237339,69899.0,69873.0,0.03135697]
[1773180097575,0.10390523,69899.0,69875.0,0.03135697]
[1773180097754,0.07153326,69898.0,69875.0,0.03135697]
[1773180098152,0.03237339,69896.0,69875.0,0.03135697]
[1773180098362,0.05470313,69890.0,69876.0,0.00148]
[1773180098784,0.05470313,69890.0,69876.0,0.03283697]
[1773180099198,0.03237339,69892.0,69876.0,0.03283697]
[1773180099753,0.03237339,69893.0,69878.0,0.03135697]
[1773180101920,0.03237339,69893.0,69879.0,0.07299225]
[1773180102770,0.03237339,69893.0,69879.0,0.07129225]
[1773180104186,0.03237339,69893.0,69879.0,0.10264922]
[1773180104703,0.03237339,69893.0,69880.0,0.03135697]
[1773180105106,0.27132236,69897.0,69880.0,0.03135697]
[1773180106111,0.03237339,69893.0,69881.0,0.0729902]
[1773180107154,0.23894897,69897.0,69881.0,0.0729902]
[1773180107369,0.23894897,69897.0,69881.0,0.09965354]
[1773180107918,0.00022001,69893.0,69881.0,0.09965354]
[1773180108760,0.02729726,69896.0,69882.0,0.02666334]
[1773180110118,0.00144,69899.0,69882.0,0.02666334]
[1773180110791,0.02798052,69899.0,69882.0,0.02666334]
[1773180111000,0.02798052,69899.0,69883.0,0.07154815]
[1773180113012,0.02798052,69899.0,69844.0,0.36199437]
[1773180113013,0.02654052,69892.0,69871.0,0.07167266]
[1773180113221,0.02654052,69880.0,69869.0,0.00144]
[1773180113437,0.02665264,69880.0,69870.0,0.00144]
[1773180113884,0.02665264,69880.0,69867.0,0.07156454]
[1773180114099,0.02654052,69879.0,69864.0,0.00144]
[1773180114244,0.02798052,69879.0,69863.0,0.06384259]
[1773180114819,0.02654052,69872.0,69862.0,0.07156966]
[1773180115013,0.02654052,69872.0,69861.0,0.07176966]
[1773180115612,0.02798052,69872.0,69861.0,0.0002]
[1773180115810,0.02654052,69871.0,69861.0,0.0002]
[1773180116390,0.02654052,69871.0,69856.0,0.07301561]
[1773180116590,0.02654052,69871.0,69856.0,0.07157561]
[1773180116791,0.02654052,69871.0,69856.0,0.07301561]
[1773180117122,0.07156147,69870.0,69863.0,0.0002]
[1773180117268,0.02654052,69869.0,69863.0,0.0002]
[1773180117474,0.07156147,69870.0,69863.0,0.0002]
[1773180117475,0.02654052,69867.0,69863.0,0.0002]
[1773180117696,0.00144,69866.0,69853.0,0.07157874]
[1773180117905,0.02654052,69862.0,69850.0,0.07325168]
[1773180118329,0.02654052,69862.0,69851.0,0.07158093]
[1773180118741,0.02654052,69862.0,69850.0,0.00023]
[1773180119186,0.02654052,69860.0,69850.0,0.00023]
[1773180119525,0.02654052,69858.0,69850.0,0.00023]
[1773180121099,0.07157429,69858.0,69847.0,0.07178298]
[1773180121338,0.02654052,69857.0,69847.0,0.07178298]
[1773180121539,0.00144,69859.0,69847.0,0.09634744]
[1773180121911,0.07301349,69859.0,69847.0,0.09634744]
[1773180122562,0.00144,69859.0,69847.0,0.07178298]
[1773180122906,0.00144,69859.0,69847.0,0.09634744]
[1773180123706,0.12617611,69870.0,69848.0,0.02600446]
[1773180124029,0.02654052,69869.0,69848.0,0.02600446]
[1773180125021,0.05472576,69870.0,69848.0,0.02600446]
[1773180125441,0.0001121,69870.0,69849.0,0.07158298]
[1773180125645,0.0001121,69870.0,69850.0,0.02456446]
[1773180125979,0.05472576,69870.0,69850.0,0.02456446]
[1773180126803,0.0001121,69870.0,69850.0,0.02456446]
[1773180127840,0.0001121,69870.0,69852.0,0.02456446]
[1773180129399,0.00023,69875.0,69852.0,0.02456446]
[1773180129598,0.00023,69875.0,69852.0,0.02467656]
[1773180129905,0.05461366,69862.0,69852.0,0.0001121]
[1773180130112,0.05461366,69862.0,69847.0,0.02476446]
[1773180130310,0.02654052,69861.0,69847.0,0.0002]
[1773180130519,0.02654052,69861.0,69848.0,0.00144]
[1773180132540,0.02654052,69861.0,69849.0,0.07158298]
[1773180132752,0.02654052,69860.0,69849.0,0.07158298]
[1773180135278,0.02654052,69860.0,69849.0,0.07258298]
[1773180136046,0.02654052,69860.0,69849.0,0.07158298]
[1773180136471,0.02654052,69860.0,69849.0,0.07258298]
[1773180137959,0.02654052,69860.0,69849.0,0.07158298]
[1773180138126,0.02654052,69860.0,69849.0,0.07258298]
[1773180138494,0.00144,69865.0,69851.0,0.02456446]
[1773180138738,0.02809264,69865.0,69851.0,0.02456446]
[1773180139121,0.02809264,69865.0,69849.0,0.07258298]
[1773180139122,0.02654052,69860.0,69849.0,0.07258298]
[1773180139499,0.02654052,69860.0,69849.0,0.07158298]
[1773180139703,0.02654052,69860.0,69851.0,0.001]
[1773180140047,0.02193867,69860.0,69849.0,0.07158298]
[1773180141116,0.02215868,69860.0,69849.0,0.07158298]
[1773180141933,0.02215868,69860.0,69847.0,0.0002]
[1773180142199,0.02193867,69859.0,69847.0,0.0002]
[1773180142855,0.02341867,69859.0,69847.0,0.0002]
[1773180144230,0.02341867,69859.0,69847.0,0.07178503]
[1773180144430,0.02193867,69856.0,69823.0,0.0002]
[1773180144652,0.02193867,69850.0,69840.0,0.0002]
[1773180144835,0.02341867,69850.0,69836.0,0.07159626]
[1773180145036,0.02341867,69850.0,69837.0,0.07159465]
[1773180145261,0.02341867,69850.0,69836.0,0.07159626]
[1773180145262,0.02341867,69850.0,69838.0,0.07179423]
[1773180145686,0.02341867,69850.0,69838.0,0.07179404]
[1773180146434,0.02193867,69848.0,69838.0,0.0002]
[1773180147763,0.07306225,69850.0,69838.0,0.0002]
[1773180147997,0.07306225,69850.0,69839.0,0.02155418]
[1773180148197,0.00148,69850.0,69839.0,0.02155418]
[1773180148594,0.00148,69850.0,69841.0,0.02155418]
[1773180148897,0.00212069,69850.0,69841.0,0.02155418]
[1773180149120,0.00212069,69850.0,69840.0,0.07307221]
[1773180149121,0.00112069,69850.0,69840.0,0.07307221]
[1773180150791,0.02305936,69850.0,69840.0,0.07307221]
[1773180151674,0.02305936,69850.0,69840.0,0.07159221]
[1773180151886,0.02193867,69849.0,69840.0,0.07159221]
[1773180153372,0.02193867,69849.0,69825.0,0.02178418]
[1773180153373,0.02193867,69848.0,69825.0,0.02178418]
[1773180153576,0.02193867,69842.0,69825.0,0.00023]
[1773180153745,0.02193867,69834.0,69823.0,0.07180915]
[1773180154310,0.02341867,69834.0,69823.0,0.0002]
[1773180154514,0.02341867,69834.0,69824.0,0.07180842]
[1773180154740,0.02341867,69834.0,69824.0,0.07218289]
[1773180155601,0.09353805,69833.0,69824.0,0.00057447]
[1773180155819,0.02193867,69832.0,69824.0,0.00057447]
[1773180157482,0.09353976,69832.0,69824.0,0.00057447]
[1773180160773,0.02193867,69832.0,69824.0,0.00357447]
[1773180161076,0.07159938,69833.0,69824.0,0.00357447]
[1773180163325,0.02193867,69832.0,69824.0,0.00357447]
[1773180163524,0.02193867,69832.0,69812.0,0.0002]
[1773180163731,0.05461366,69825.0,69812.0,0.0718205]
[1773180164064,0.00148,69824.0,69814.0,0.07161844]
[1773180164235,0.00148,69824.0,69816.0,0.02155418]
[1773180164627,0.07160847,69825.0,69816.0,0.02155418]
[1773180166162,0.07160847,69825.0,69824.0,0.0002]
[1773180166732,0.07142876,69825.0,69824.0,0.0002]
[1773180167138,0.09186983,69825.0,69824.0,0.0002]
[1773180167825,0.09286983,69825.0,69817.0,0.0002]
[1773180168028,0.09186983,69825.0,69817.0,0.0002]
[1773180168476,0.07242876,69825.0,69817.0,0.0002]
[1773180168673,0.07142876,69825.0,69817.0,0.0002]
[1773180169086,0.07308682,69826.0,69817.0,0.0002]
[1773180169087,0.00148,69826.0,69817.0,0.0002]
[1773180169328,0.00148,69834.0,69818.0,0.01999946]
[1773180169518,0.07158963,69843.0,69818.0,0.02037316]
[1773180169519,0.00148,69841.0,69818.0,0.02037316]
[1773180169725,0.05469964,69840.0,69818.0,0.02037316]
[1773180169882,0.07158772,69845.0,69818.0,0.02037316]
[1773180170086,0.00148,69847.0,69821.0,0.01829787]
[1773180170291,0.07158564,69847.0,69822.0,0.07161066]
[1773180170495,0.05469964,69840.0,69823.0,0.01829787]
[1773180170903,0.05469964,69840.0,69825.0,0.01829787]
[1773180171595,0.05469964,69840.0,69827.0,0.01829787]
[1773180171760,0.07158697,69846.0,69827.0,0.01829787]
[1773180172875,0.0772083,69844.0,69828.0,0.07160451]
[1773180173154,0.0185668,69843.0,69828.0,0.07304451]
[1773180173452,0.0185668,69843.0,69828.0,0.09134238]
[1773180173652,0.0185668,69843.0,69829.0,0.01829787]
[1773180174087,0.05646066,69838.0,69816.0,0.07161633]
[1773180174444,0.0200068,69837.0,69821.0,0.01829787]
[1773180174796,0.07303626,69837.0,69822.0,0.07161066]
[1773180174977,0.07303626,69837.0,69823.0,0.01829787]
[1773180175182,0.00144,69841.0,69823.0,0.01829787]
[1773180175436,0.00144,69843.0,69823.0,0.01829787]
[1773180175644,0.07720848,69844.0,69823.0,0.01829787]
[1773180175855,0.00144,69843.0,69823.0,0.01829787]
[1773180177358,0.07159016,69842.0,69824.0,0.07160861]
[1773180177664,0.07141042,69842.0,69825.0,0.01829787]
[1773180178268,0.07284946,69843.0,69825.0,0.01829787]
[1773180178860,0.07158919,69843.0,69825.0,0.01829787]
[1773180179066,0.07302919,69843.0,69825.0,0.01829787]
[1773180179444,0.07158919,69843.0,69827.0,0.01829787]
[1773180179649,0.07158919,69843.0,69829.0,0.01829787]
[1773180179884,0.0718092,69843.0,69829.0,0.01829787]
[1773180180036,0.0732492,69843.0,69829.0,0.01829787]
[1773180181253,0.0185668,69842.0,69829.0,0.00144]
[1773180181451,0.0732492,69843.0,69824.0,0.0002]
[1773180181452,0.01838707,69837.0,69824.0,0.0002]
[1773180181629,0.00144,69836.0,69824.0,0.0002]
[1773180182826,0.0200068,69836.0,69824.0,0.0002]
[1773180183455,0.0200068,69836.0,69818.0,0.0003737]
[1773180183456,0.0185668,69834.0,69818.0,0.0003737]
[1773180183658,0.0185668,69834.0,69811.0,0.0716218]
[1773180183659,0.0185668,69829.0,69811.0,0.07162166]
[1773180183880,0.00144,69828.0,69810.0,0.00164]
[1773180184002,0.0185668,69827.0,69810.0,0.07182289]
[1773180184414,0.0185668,69827.0,69811.0,0.07162156]
[1773180185237,0.0195668,69827.0,69811.0,0.07162156]
[1773180185570,0.0185668,69825.0,69811.0,0.07162156]
[1773180185982,0.0185668,69825.0,69810.0,0.07182289]
[1773180186187,0.07160656,69826.0,69805.0,1e-08]
[1773180186188,0.0185668,69821.0,69805.0,1e-08]
[1773180186343,0.0185668,69814.0,69803.0,1e-08]
[1773180186741,0.00108043,69813.0,69803.0,1e-08]
[1773180187168,0.00108043,69813.0,69803.0,0.07162985]
[1773180187338,0.00108043,69813.0,69804.0,0.01829787]
[1773180188668,0.07161982,69814.0,69804.0,0.01829787]
[1773180188874,0.00144,69813.0,69804.0,0.01829787]
[1773180189283,0.00144,69813.0,69804.0,0.07162834]
[1773180189498,0.07161066,69822.0,69806.0,0.07162708]
[1773180189700,0.0185668,69821.0,69805.0,0.00144]
[1773180190108,0.16409672,69820.0,69803.0,1e-08]
[1773180190309,0.16409672,69820.0,69770.0,0.16409672]
[1773180190310,0.0185668,69812.0,69794.0,0.00048]
[1773180190531,0.0185668,69810.0,69794.0,0.00048]
[1773180190784,0.0185668,69808.0,69794.0,0.07211906]
[1773180190996,0.00144,69811.0,69795.0,0.01973787]
[1773180191627,0.07306266,69811.0,69796.0,0.07163734]
[1773180191962,0.07343613,69811.0,69797.0,0.01829787]
[1773180192166,0.07443613,69811.0,69797.0,0.01829787]
[1773180192302,0.07343613,69811.0,69797.0,0.01829787]
[1773180192702,0.00181347,69811.0,69797.0,0.01829787]
[1773180193062,0.07343577,69811.0,69797.0,0.01829787]
[1773180193431,0.00144,69814.0,69797.0,0.01829787]
[1773180193683,0.00144,69814.0,69799.0,0.01829787]
[1773180194026,0.00144,69814.0,69805.0,0.01849787]
[1773180195686,0.0185668,69813.0,69805.0,0.0002]
[1773180195859,0.0185668,69813.0,69798.0,0.0002]
[1773180196066,0.07305929,69814.0,69798.0,0.0002]
[1773180196067,0.0185668,69809.0,69798.0,0.0002]
[1773180196242,0.16409672,69810.0,69798.0,0.0002]
[1773180196243,0.00144,69808.0,69798.0,0.0002]
[1773180196445,0.0185668,69807.0,69798.0,0.0002]
[1773180197159,0.0185668,69799.0,69791.0,0.0004186]
[1773180197372,0.0200068,69799.0,69788.0,0.00562]
[1773180197569,0.07163529,69798.0,69788.0,0.00562]
[1773180197793,0.00144,69803.0,69790.0,0.2432357]
[1773180198116,0.00244,69807.0,69791.0,0.01973787]
[1773180198314,0.00144,69807.0,69791.0,0.02011141]
[1773180198532,0.00144,69807.0,69793.0,0.01829787]
[1773180198739,0.00144,69811.0,69793.0,0.01829787]
[1773180198893,0.00144,69811.0,69793.0,0.01847677]
[1773180199838,0.00144,69811.0,69794.0,0.07163939]
[1773180200177,0.00144,69811.0,69793.0,0.07181829]
[1773180200178,0.01676587,69809.0,69793.0,0.0011789]
[1773180200933,0.01676587,69809.0,69794.0,0.0002]
[1773180201830,0.07162502,69808.0,69794.0,0.0003789]
[1773180202062,0.01676587,69807.0,69794.0,0.0003789]
[1773180202667,0.00144,69811.0,69795.0,0.01681764]
[1773180202846,0.07306225,69811.0,69795.0,0.01699654]
[1773180203041,0.08982812,69811.0,69795.0,0.01699654]
[1773180203510,0.001,69809.0,69795.0,0.01699654]
[1773180203676,0.07306225,69811.0,69795.0,0.01699654]
[1773180204075,0.07406225,69811.0,69797.0,0.01681764]
[1773180204317,0.07306225,69811.0,69797.0,0.01681764]
[1773180204877,0.07306225,69811.0,69797.0,0.01699654]
[1773180205461,0.07305832,69815.0,69797.0,0.01699654]
[1773180206142,0.00144,69816.0,69799.0,0.01681764]
[1773180206380,0.01676587,69815.0,69797.0,0.07181419]
[1773180206656,0.01676587,69815.0,69797.0,0.0001789]
[1773180206896,0.01676587,69815.0,69797.0,0.07181436]
[1773180207582,0.01676587,69815.0,69797.0,0.0001789]
[1773180207762,0.01776587,69815.0,69797.0,0.0001789]
[1773180208047,0.01676587,69810.0,69797.0,0.0001789]
[1773180208250,0.073064,69809.0,69797.0,0.0001789]
[1773180210777,0.08982987,69809.0,69797.0,0.0001789]
[1773180210985,0.09082987,69809.0,69797.0,0.0001789]
[1773180211296,0.08982987,69809.0,69797.0,0.0001789]
[1773180211806,0.01676587,69808.0,69797.0,0.0001789]
[1773180212959,0.07162605,69807.0,69797.0,0.0001789]
[1773180215322,0.01676587,69807.0,69797.0,0.0001789]
[1773180216166,0.07184531,69808.0,69797.0,0.0001789]
[1773180218623,0.08861118,69808.0,69797.0,0.0001789]
[1773180222044,0.08861118,69808.0,69797.0,0.0003789]
[1773180222688,0.071846,69808.0,69797.0,0.07201419]
[1773180223238,0.071846,69808.0,69797.0,0.08883183]
[1773180224038,0.071846,69808.0,69797.0,0.07201419]
[1773180224358,0.072846,69808.0,69798.0,0.01681764]
[1773180224541,0.071846,69808.0,69798.0,0.01681764]
[1773180225068,0.071846,69808.0,69798.0,0.01699654]
[1773180225534,0.07183821,69815.0,69799.0,0.01681764]
[1773180226008,0.07183821,69815.0,69801.0,0.01681764]
[1773180227050,0.07427821,69815.0,69801.0,0.01681764]
[1773180227305,0.07427821,69815.0,69801.0,0.01699654]
[1773180227479,0.07327821,69815.0,69801.0,0.01699654]
[1773180228360,0.07327821,69815.0,69802.0,0.08611017]
[1773180229306,0.07327821,69815.0,69803.0,0.01447899]
[1773180230087,0.00022001,69815.0,69803.0,0.01447899]
[1773180230273,0.07327522,69818.0,69805.0,0.01559798]
[1773180230675,0.00022001,69815.0,69805.0,0.01559798]
[1773180231614,0.00166001,69818.0,69805.0,0.01559798]
[1773180231960,0.00022001,69822.0,69805.0,0.01559798]
[1773180232097,0.00144,69823.0,69805.0,0.01559798]
[1773180232335,0.07303872,69834.0,69808.0,0.01559798]
[1773180233860,0.07303872,69834.0,69808.0,0.01659798]
[1773180234238,0.07303872,69834.0,69809.0,0.071624]
[1773180234440,0.07303872,69834.0,69812.0,0.01559798]
[1773180234629,0.07159831,69835.0,69814.0,0.01559798]
[1773180234848,0.00144,69834.0,69814.0,0.01559798]
[1773180235064,0.00144,69833.0,69814.0,0.01559798]
[1773180235266,0.07181672,69836.0,69814.0,0.01559798]
[1773180235267,0.00022001,69836.0,69814.0,0.01559798]
[1773180235484,0.00166001,69836.0,69814.0,0.01559798]
[1773180235691,0.00177207,69836.0,69814.0,0.01559798]
[1773180235889,0.01566366,69835.0,69815.0,0.00144]
[1773180236092,0.01566366,69835.0,69816.0,0.01559798]
[1773180236300,0.01566366,69835.0,69820.0,0.01559798]
[1773180236786,0.01566366,69835.0,69821.0,0.01703798]
[1773180237291,0.00177207,69836.0,69821.0,0.01703798]
[1773180237494,0.00022001,69834.0,69821.0,0.01703798]
[1773180239096,0.00022001,69834.0,69822.0,0.08720864]
[1773180239295,0.00022001,69834.0,69822.0,0.08864864]
[1773180239718,0.00022001,69834.0,69823.0,0.01559798]
[1773180239930,0.00022001,69834.0,69822.0,0.07305066]
[1773180240160,0.00022001,69834.0,69820.0,0.00144]
[1773180240161,0.01566366,69832.0,69820.0,0.00144]
[1773180240366,0.01566366,69832.0,69815.0,0.01559798]
[1773180240367,0.01566366,69832.0,69819.0,0.00144]
[1773180240778,0.00022001,69834.0,69820.0,0.01559798]
[1773180241233,0.00022001,69834.0,69816.0,0.00144]
[1773180241234,0.01566366,69833.0,69819.0,0.07161306]
[1773180241430,0.01566366,69833.0,69819.0,0.08721104]
[1773180242040,0.01566366,69829.0,69815.0,0.00144]
[1773180242186,0.01710366,69829.0,69815.0,0.00144]
[1773180242613,0.00144,69829.0,69815.0,0.01703798]
[1773180243875,0.00144,69829.0,69817.0,0.01559798]
[1773180244511,0.01566366,69828.0,69816.0,0.07161682]
[1773180244970,0.07304353,69829.0,69816.0,0.0872148]
[1773180245172,0.07326354,69829.0,69816.0,0.0872148]
[1773180245373,0.07326354,69829.0,69816.0,0.0886548]
[1773180246072,0.07326354,69829.0,69816.0,0.0872148]
[1773180246284,0.07326354,69829.0,69816.0,0.0886548]
[1773180246854,0.01566366,69828.0,69816.0,0.07305682]
[1773180247628,0.01566366,69828.0,69816.0,0.07161682]
[1773180247809,0.01566366,69828.0,69816.0,0.07305682]
[1773180249172,0.07326378,69829.0,69816.0,0.0886548]
[1773180249568,0.00922691,69834.0,69817.0,0.01559798]
[1773180249773,0.00166001,69840.0,69821.0,0.01559798]
[1773180250005,0.00144,69840.0,69821.0,0.01571004]
[1773180250207,0.01566366,69839.0,69821.0,0.00011206]
[1773180250435,0.01566366,69839.0,69822.0,0.00144]
[1773180251019,0.01566366,69839.0,69823.0,0.01559798]
[1773180251233,0.07159426,69838.0,69824.0,0.07160861]
[1773180251632,0.08725792,69838.0,69824.0,0.07160861]
[1773180252427,0.08725792,69838.0,69824.0,0.08720659]
[1773180252606,0.08725792,69838.0,69824.0,0.07160861]
[1773180252750,0.08725792,69838.0,69824.0,0.08720659]
[1773180255789,0.08725811,69838.0,69824.0,0.07160861]
[1773180255994,0.00022001,69843.0,69825.0,0.01559798]
[1773180256230,0.00195291,69847.0,69831.0,0.01559798]
[1773180256398,0.00195291,69847.0,69833.0,0.01559798]
[1773180257333,0.07180289,69850.0,69833.0,0.01559798]
[1773180257334,0.00022001,69850.0,69833.0,0.01559798]
[1773180257771,0.00022001,69854.0,69833.0,0.01559798]
[1773180257967,0.00166001,69854.0,69833.0,0.01559798]
[1773180258132,0.07179796,69854.0,69833.0,0.01559798]
[1773180258340,0.07323796,69854.0,69835.0,0.01559798]
[1773180258866,0.00166001,69854.0,69835.0,0.01559798]
[1773180259071,0.07323793,69854.0,69835.0,0.01559798]
[1773180259276,0.00022001,69852.0,69835.0,0.01559798]
[1773180260000,0.00022001,69852.0,69841.0,0.25473505]
[1773180260200,0.00023,69850.0,69846.0,0.07158522]
[1773180260491,0.0001717,69850.0,69847.0,0.01502399]
[1773180266148,0.00039171,69850.0,69847.0,0.01502399]
[1773180267362,0.00022001,69857.0,69848.0,0.01502399]
[1773180267576,0.00011218,69857.0,69848.0,0.01502399]
[1773180268002,0.00011218,69857.0,69848.0,0.01646399]
[1773180270648,0.00011218,69857.0,69849.0,0.07158298]
[1773180270848,0.00011218,69857.0,69848.0,0.07158298]